bitfinex/quotes_SOLUSD_20241105
["timestamp","ask_amount","ask_price","bid_price","bid_amount"]
[1730816892420,18.65268837,165.43,165.41,0.1]
[1730816892732,0.3182807,165.43,165.41,0.1]
[1730816892937,0.3182807,165.43,165.42,0.2]
[1730816893446,0.3182807,165.43,165.42,18.53460767]
[1730816894753,0.3182807,165.43,165.42,18.51459867]
[1730816895123,0.3182807,165.43,165.42,4.411591]
[1730816895326,0.3182807,165.43,165.42,18.51459867]
[1730816895629,0.3182807,165.43,165.42,0.179991]
[1730816896450,0.12549,165.42,165.4,0.179991]
[1730816896752,14.10300767,165.41,165.4,0.179991]
[1730816896928,14.22849767,165.42,165.4,0.179991]
[1730816897425,0.12549,165.42,165.4,0.179991]
[1730816897620,18.46019767,165.42,165.4,0.179991]
[1730816899144,0.12549,165.42,165.4,0.179991]
[1730816899555,0.12549,165.42,165.41,0.079991]
[1730816899732,4.35709,165.42,165.4,0.179991]
[1730816899924,4.35709,165.42,165.41,0.079991]
[1730816900235,18.46009767,165.42,165.4,0.079991]
[1730816900434,14.22849767,165.41,165.4,0.079991]
[1730816900635,0.12549,165.4,165.35,0.179991]
[1730816900838,0.12549,165.4,165.32,24.68850767]
[1730816900839,14.10300767,165.37,165.36,0.179991]
[1730816901045,14.10300767,165.37,165.35,0.179991]
[1730816901232,14.10300767,165.37,165.36,0.1]
[1730816901434,14.10300767,165.38,165.35,0.179991]
[1730816901638,14.10300767,165.38,165.36,0.1]
[1730816902044,18.33570767,165.38,165.35,0.179991]
[1730816902347,18.46119767,165.38,165.37,0.079991]
[1730816902549,0.25098,165.37,165.33,0.079991]
[1730816902743,14.10300767,165.34,165.32,0.079991]
[1730816902954,0.12549,165.32,165.3,0.179991]
[1730816903128,14.10300767,165.31,165.28,0.179991]
[1730816903453,0.12549,165.3,165.29,0.079991]
[1730816903841,0.12549,165.31,165.29,0.079991]
[1730816904033,4.35999,165.31,165.29,0.079991]
[1730816904533,4.2342,165.32,165.3,0.179991]
[1730816904850,14.22849767,165.31,165.28,0.079991]
[1730816905053,0.25098,165.29,165.25,0.079991]
[1730816905269,0.12549,165.26,165.25,0.079991]
[1730816905828,14.35398767,165.27,165.25,0.079991]
[1730816906028,18.58948767,165.27,165.25,0.079991]
[1730816906833,0.12549,165.25,165.24,0.079991]
[1730816907452,18.46399767,165.27,165.25,0.079991]
[1730816907453,0.12549,165.26,165.25,0.079991]
[1730816907642,76.2512,165.35,165.28,0.179991]
[1730816907843,18.33670767,165.34,165.3,0.079991]
[1730816908053,14.10300767,165.35,165.32,0.079991]
[1730816908232,14.22849767,165.35,165.32,0.079991]
[1730816908443,14.10300767,165.34,165.31,0.079991]
[1730816908639,14.10300767,165.35,165.32,0.079991]
[1730816908865,18.33640767,165.36,165.32,0.179991]
[1730816909357,22.63837399,165.35,165.31,0.079991]
[1730816909566,42.51288399,165.37,165.33,0.079991]
[1730816909858,4.2334,165.35,165.33,0.079991]
[1730816910030,0.3182807,165.43,165.38,0.179991]
[1730816910236,0.3182807,165.43,165.32,10.5855]
[1730816910237,22.83116469,165.43,165.41,0.079991]
[1730816910430,22.83116469,165.43,165.32,14.9195]
[1730816910431,22.51288399,165.42,165.38,0.179991]
[1730816910652,22.51288399,165.42,165.39,0.1]
[1730816910864,22.51288399,165.42,165.39,0.079991]
[1730816911052,0.12549,165.41,165.4,0.079991]
[1730816911256,26.74448399,165.42,165.39,0.179991]
[1730816911450,22.51288399,165.4,165.37,0.079991]
[1730816911652,4.2316,165.42,165.39,0.079991]
[1730816911959,0.12549,165.41,165.34,0.079991]
[1730816912162,22.51288399,165.37,165.34,0.079991]
[1730816912534,70.12549,165.41,165.34,0.079991]
[1730816912739,0.25098,165.39,165.34,0.079991]
[1730816913165,26.74548399,165.38,165.35,0.1]
[1730816913539,4.2326,165.38,165.37,0.079991]
[1730816914168,4.2326,165.38,165.35,0.179991]
[1730816914342,26.74548399,165.38,165.35,0.179991]
[1730816914541,26.74548399,165.38,165.35,0.079991]
[1730816914743,22.63837399,165.37,165.34,0.1]
[1730816915057,22.63837399,165.37,165.35,0.079991]
[1730816915364,26.87137399,165.37,165.35,0.079991]
[1730816915536,30.5791,165.42,165.38,0.179991]
[1730816915537,24.222505,165.39,165.38,0.179991]
[1730816915736,22.51288399,165.4,165.38,0.079991]
[1730816916061,22.63837399,165.39,165.36,0.179991]
[1730816916553,22.51288399,165.38,165.35,0.179991]
[1730816916868,22.63837399,165.38,165.35,0.179991]
[1730816917074,22.51288399,165.36,165.34,0.1]
[1730816917240,26.74578399,165.37,165.35,0.079991]
[1730816917436,4.2329,165.37,165.35,0.079991]
[1730816917642,24.219242,165.42,165.41,0.079991]
[1730816917836,22.83116469,165.51,165.42,0.079991]
[1730816918067,22.51288399,165.49,165.42,22.69287499]
[1730816918273,24.5477807,165.51,165.42,22.69287499]
[1730816918478,22.51288399,165.48,165.42,22.69287499]
[1730816918848,22.51288399,165.49,165.42,22.69287499]
[1730816919142,0.3182807,165.51,165.42,22.69287499]
[1730816919143,27.06056469,165.51,165.42,22.69287499]
[1730816919345,0.3182807,165.51,165.42,26.92447499]
[1730816919569,22.83116469,165.51,165.42,50.70135899]
[1730816919877,0.3182807,165.51,165.42,50.70135899]
[1730816920161,22.83116469,165.51,165.42,50.70135899]
[1730816920362,0.3182807,165.51,165.42,50.70135899]
[1730816920540,22.51288399,165.49,165.42,0.179991]
[1730816920742,22.51288399,165.46,165.42,0.179991]
[1730816920941,22.51288399,165.44,165.42,0.179991]
[1730816921139,22.51288399,165.44,165.42,0.1]
[1730816921336,26.74398399,165.45,165.4,0.179991]
[1730816921548,26.74398399,165.45,165.42,0.079991]
[1730816921743,26.74398399,165.45,165.42,0.179991]
[1730816921969,22.51288399,165.44,165.4,0.079991]
[1730816922268,0.3182807,165.51,165.39,0.179991]
[1730816922269,22.76386399,165.42,165.39,0.179991]
[1730816922457,22.51288399,165.41,165.38,0.1]
[1730816922771,22.51288399,165.41,165.39,0.079991]
[1730816922946,22.76386399,165.42,165.39,0.079991]
[1730816923338,0.25098,165.4,165.39,0.079991]
[1730816923937,0.3182807,165.43,165.4,0.179991]
[1730816924171,0.3182807,165.43,165.41,0.1]
[1730816924557,0.3182807,165.43,165.41,0.179991]
[1730816925292,0.3182807,165.43,165.42,0.179991]
[1730816925779,0.3182807,165.43,165.42,22.69287499]
[1730816926587,0.3182807,165.43,165.42,0.179991]
[1730816926985,0.3182807,165.43,165.42,22.69287499]
[1730816927568,0.3182807,165.43,165.42,56.89005899]
[1730816927764,0.3182807,165.43,165.42,76.89005899]
[1730816927971,0.3182807,165.43,165.42,33.11317499]
[1730816928369,0.3182807,165.43,165.42,22.69287499]
[1730816928577,0.3182807,165.43,165.42,0.079991]
[1730816928783,0.3182807,165.43,165.42,0.179991]
[1730816929026,0.3182807,165.43,165.42,22.69287499]
[1730816929286,0.3182807,165.43,165.42,0.079991]
[1730816930762,0.4437707,165.43,165.39,0.179991]
[1730816930967,0.4437707,165.43,165.38,4.2326]
[1730816930968,22.51288399,165.4,165.38,0.1]
[1730816931179,22.88935399,165.42,165.39,0.079991]
[1730816931389,22.51288399,165.4,165.38,0.079991]
[1730816931589,22.76386399,165.42,165.38,0.079991]
[1730816931763,22.51288399,165.42,165.39,0.079991]
[1730816931961,27.06256469,165.43,165.4,0.079991]
[1730816932278,0.12549,165.42,165.4,0.079991]
[1730816932475,0.3182807,165.43,165.41,0.1]
[1730816932697,0.3182807,165.43,165.41,0.179991]
[1730816933099,0.3182807,165.43,165.42,0.079991]
[1730816933471,0.3182807,165.43,165.41,0.179991]
[1730816933782,0.3182807,165.43,165.42,0.1]
[1730816933980,0.3182807,165.43,165.42,0.179991]
[1730816934885,0.3182807,165.43,165.42,22.69287499]
[1730816935088,0.3182807,165.43,165.42,26.92447499]
[1730816938697,0.3182807,165.43,165.42,0.179991]
[1730816939471,0.3182807,165.43,165.41,0.079991]
[1730816939699,0.3182807,165.43,165.42,0.079991]
[1730816940001,0.3182807,165.43,165.41,0.079991]
[1730816940210,0.3182807,165.43,165.42,0.179991]
[1730816941605,0.3182807,165.43,165.42,0.1]
[1730816941808,0.3182807,165.43,165.42,0.179991]
[1730816941981,0.3182807,165.43,165.42,0.1]
[1730816942382,0.3182807,165.43,165.42,0.179991]
[1730816943408,0.3182807,165.43,165.42,22.69287499]
[1730816943610,0.3182807,165.43,165.42,26.92447499]
[1730816943810,0.3182807,165.43,165.42,0.179991]
[1730816945184,0.3182807,165.43,165.42,26.92447499]
[1730816946481,22.83116469,165.43,165.41,0.1]
[1730816946682,0.3182807,165.43,165.42,0.179991]
[1730816947081,0.3182807,165.43,165.42,22.69287499]
[1730816947281,0.3182807,165.51,165.5,0.179991]
[1730816947707,0.3182807,165.51,165.5,6.289791]
[1730816947881,0.3182807,165.51,165.5,23.956875]
[1730816948093,0.3182807,165.51,165.5,46.46975899]
[1730816948407,0.3182807,165.51,165.5,89.08264298]
[1730816948798,0.3182807,165.51,165.5,105.54834298]
[1730816949281,0.3182807,165.51,165.5,87.16505899]
[1730816949481,0.3182807,165.51,165.5,109.77794298]
[1730816949708,0.3182807,165.51,165.5,87.06505899]
[1730816950694,0.3182807,165.51,165.5,4.409591]
[1730816950896,0.3182807,165.51,165.5,0.1]
[1730816951212,0.3182807,165.51,165.5,0.179991]
[1730816951426,0.3182807,165.51,165.5,0.1]
[1730816951712,27.06046469,165.51,165.5,0.1]
[1730816951917,0.3182807,165.51,165.5,0.179991]
[1730816952291,0.3182807,165.51,165.5,0.1]
[1730816952490,0.3182807,165.51,165.5,0.179991]
[1730816952708,0.3182807,165.51,165.44,10.5773]
[1730816952709,0.3182807,165.51,165.49,0.179991]
[1730816952888,0.3182807,165.51,165.5,0.179991]
[1730816954393,0.3182807,165.51,165.5,0.1]
[1730816954591,0.3182807,165.51,165.5,0.179991]
[1730816955920,4.5475807,165.51,165.5,0.179991]
[1730816956093,0.3182807,165.51,165.5,0.179991]
[1730816956289,0.3182807,165.51,165.5,0.1]
[1730816956689,0.3182807,165.51,165.5,0.179991]
[1730816957581,0.3182807,165.51,165.5,0.1]
[1730816957780,0.3182807,165.51,165.5,0.179991]
[1730816959212,22.83116469,165.51,165.5,0.179991]
[1730816959502,0.3182807,165.51,165.5,0.179991]
[1730816961686,0.3182807,165.51,165.5,26.92247499]
[1730816962213,0.3182807,165.51,165.5,0.179991]
[1730816963309,0.3182807,165.51,165.5,22.69287499]
[1730816963711,0.3182807,165.51,165.5,26.92247499]
[1730816964510,4.5475807,165.51,165.5,0.179991]
[1730816964700,0.3182807,165.51,165.5,0.179991]
[1730816965819,0.3182807,165.51,165.5,22.69287499]
[1730816966031,0.3182807,165.51,165.5,0.179991]
[1730816966803,4.5475807,165.51,165.48,0.179991]
[1730816967120,27.06046469,165.51,165.48,0.1]
[1730816967324,27.06046469,165.51,165.49,0.1]
[1730816967625,22.63837399,165.5,165.45,0.179991]
[1730816967805,22.51288399,165.46,165.45,0.079991]
[1730816968501,22.51288399,165.46,165.43,0.1]
[1730816968702,22.51288399,165.44,165.43,0.1]
[1730816968929,22.51288399,165.45,165.43,0.1]
[1730816969103,22.51288399,165.44,165.42,0.1]
[1730816969426,22.51288399,165.44,165.41,0.079991]
[1730816969427,22.51288399,165.43,165.41,0.079991]
[1730816969736,22.51288399,165.42,165.41,0.079991]
[1730816970838,0.12549,165.45,165.43,0.179991]
[1730816971120,22.63837399,165.45,165.44,0.079991]
[1730816971326,22.63837399,165.45,165.44,0.179991]
[1730816971624,0.12549,165.45,165.44,0.179991]
[1730816972902,0.12549,165.45,165.44,26.92397499]
[1730816973225,0.12549,165.45,165.44,73.31374298]
[1730816973424,0.12549,165.45,165.44,93.31374298]
[1730816974613,0.12549,165.45,165.44,70.70085899]
[1730816974810,0.12549,165.45,165.44,93.21374298]
[1730816976321,0.12549,165.45,165.44,93.66472298]
[1730816977007,0.12549,165.45,165.44,93.31374298]
[1730816977212,0.12549,165.45,165.44,70.70085899]
[1730816977410,0.12549,165.45,165.44,70.80085899]
[1730816977627,0.12549,165.45,165.44,93.21374298]
[1730816977806,0.12549,165.45,165.44,93.43923298]
[1730816978119,0.12549,165.45,165.44,93.56472298]
[1730816979121,0.12549,165.45,165.44,0.179991]
[1730816979431,0.12549,165.45,165.44,4.411091]
[1730816979810,0.12549,165.45,165.44,26.92397499]
[1730816980311,0.12549,165.45,165.44,50.70085899]
[1730816980520,0.12549,165.45,165.44,4.411091]
[1730816980720,0.12549,165.45,165.44,0.179991]
[1730816981127,0.12549,165.45,165.44,22.69287499]
[1730816981433,0.12549,165.45,165.44,26.92397499]
[1730816981606,0.12549,165.45,165.44,69.53685898]
[1730816982011,0.12549,165.45,165.44,93.31374298]
[1730816982202,0.12549,165.45,165.44,93.66472298]
[1730816982935,0.12549,165.45,165.44,93.56472298]
[1730816983237,0.12549,165.45,165.44,93.66472298]
[1730816983731,0.12549,165.45,165.44,93.56472298]
[1730816984520,0.12549,165.45,165.44,93.66472298]
[1730816984914,0.12549,165.45,165.44,26.92397499]
[1730816985226,0.12549,165.45,165.44,69.53685898]
[1730816985433,0.12549,165.45,165.44,24.511091]
[1730816985612,0.12549,165.45,165.44,4.611091]
[1730816985809,0.12549,165.45,165.44,4.736581]
[1730816986014,0.3182807,165.51,165.5,0.179991]
[1730816986241,0.3182807,165.51,165.5,0.279991]
[1730816986413,0.3182807,165.51,165.5,28.286475]
[1730816986618,0.3182807,165.51,165.5,48.537455]
[1730816987320,0.3182807,165.51,165.5,71.05033899]
[1730816987622,0.3182807,165.51,165.5,70.92484899]
[1730816989652,0.3182807,165.51,165.5,71.02484899]
[1730816989852,0.3182807,165.51,165.5,70.92484899]
[1730816990143,0.3182807,165.51,165.5,22.69287499]
[1730816990519,0.3182807,165.51,165.5,26.92247499]
[1730816990715,0.3182807,165.51,165.5,22.69287499]
[1730816990926,0.3182807,165.51,165.5,0.179991]
[1730816992618,0.3182807,165.51,165.5,22.69287499]
[1730816993343,0.3182807,165.51,165.5,26.92247499]
[1730816993727,0.3182807,165.51,165.5,46.46975899]
[1730816994032,0.3182807,165.51,165.5,50.69935899]
[1730816994348,0.3182807,165.51,165.5,0.179991]
[1730816994544,0.3182807,165.51,165.5,22.69287499]
[1730816995953,0.3182807,165.51,165.5,26.92247499]
[1730816996329,0.3182807,165.51,165.5,22.69287499]
[1730816997126,0.3182807,165.51,165.5,0.179991]
[1730816998730,37.72396499,165.44,165.17,6.5719]
[1730816998935,0.1,165.3,165.29,22.51288399]
[1730816999150,0.2,165.3,165.29,22.51288399]
[1730816999350,0.2,165.28,165.27,22.51288399]
[1730816999528,0.1,165.27,165.26,22.51288399]
[1730817000626,4.434,165.33,165.27,20.0]
[1730817000831,6.4441,165.4,165.32,22.51288399]
[1730817000832,0.2,165.38,165.32,22.51288399]
[1730817001150,4.2323,165.4,165.3,34.8215]
[1730817001151,0.1,165.37,165.3,34.8215]
[1730817001461,0.1,165.38,165.36,22.51288399]
[1730817001760,0.1,165.38,165.3,34.8215]
[1730817001761,0.1,165.38,165.37,22.51288399]
[1730817001963,0.1,165.38,165.36,22.51288399]
[1730817001964,0.2,165.38,165.36,22.51288399]
[1730817002730,0.2,165.35,165.32,20.0]
[1730817003037,0.2,165.35,165.33,22.51288399]
[1730817003234,0.1,165.34,165.31,20.0]
[1730817003462,0.2,165.3,165.25,10.5894]
[1730817003762,4.2335,165.35,165.23,10.3844]
[1730817003763,0.2,165.27,165.23,6.1481]
[1730817004088,0.1,165.28,165.23,20.9757]
[1730817004743,0.1,165.28,165.26,22.51288399]
[1730817005137,0.1,165.31,165.27,22.51288399]
[1730817005337,0.1,165.34,165.31,20.0]
[1730817005552,0.1,165.34,165.33,22.51288399]
[1730817005755,0.1,165.36,165.33,22.51288399]
[1730817005960,0.1,165.38,165.35,22.51288399]
[1730817006153,0.1,165.38,165.36,22.51288399]
[1730817006348,0.1,165.39,165.36,22.51288399]
[1730817006742,0.1,165.38,165.36,22.51288399]
[1730817006942,4.432,165.41,165.36,22.51288399]
[1730817007251,0.1,165.38,165.36,22.51288399]
[1730817007660,0.1,165.41,165.37,22.51288399]
[1730817008166,0.1,165.4,165.36,22.51288399]
[1730817008347,0.1,165.38,165.36,46.28976799]
[1730817008543,0.1,165.38,165.29,21.29979]
[1730817008544,0.2,165.38,165.34,22.51288399]
[1730817008742,0.2,165.38,165.35,20.0]
[1730817009263,0.2,165.38,165.35,42.51288399]
[1730817009568,0.2,165.38,165.34,40.78361738]
[1730817009770,0.1,165.37,165.34,36.55001738]
[1730817009942,0.1,165.38,165.36,36.55001738]
[1730817010141,37.49847499,165.44,165.38,23.776884]
[1730817010142,0.1,165.43,165.38,23.776884]
[1730817010345,0.2,165.43,165.39,36.55001738]
[1730817010566,0.1,165.41,165.39,36.55001738]
[1730817011044,0.1,165.39,165.36,36.55001738]
[1730817011249,0.1,165.4,165.36,36.55001738]
[1730817011250,0.2,165.4,165.36,36.55001738]
[1730817011465,0.1,165.39,165.36,40.78311738]
[1730817011639,0.2,165.39,165.36,20.0]
[1730817011843,36.55001738,165.4,165.34,42.91931738]
[1730817011844,0.2,165.38,165.34,42.91931738]
[1730817012045,0.1,165.38,165.35,56.55001738]
[1730817012244,0.2,165.38,165.35,56.55001738]
[1730817012660,0.2,165.37,165.33,47.13481738]
[1730817012851,0.1,165.34,165.31,36.55001738]
[1730817013060,0.2,165.33,165.29,53.47681738]
[1730817013253,0.1,165.32,165.29,53.47681738]
[1730817013567,0.1,165.31,165.29,10.5873]
[1730817013779,0.1,165.31,165.24,27.5692]
[1730817013780,0.1,165.3,165.27,36.55001738]
[1730817014370,0.1,165.29,165.27,36.55001738]
[1730817014552,0.1,165.27,165.24,36.55001738]
[1730817014741,0.1,165.27,165.23,4.2364]
[1730817014742,0.2,165.32,165.26,36.55001738]
[1730817014941,0.2,165.36,165.31,36.55001738]
[1730817015172,0.1,165.36,165.33,36.55001738]
[1730817015370,0.2,165.36,165.33,36.55001738]
[1730817015566,0.1,165.36,165.33,36.55001738]
[1730817015952,0.2,165.36,165.26,44.153354]
[1730817016154,0.2,165.36,165.35,36.55001738]
[1730817016470,0.1,165.36,165.35,36.55001738]
[1730817017273,0.2,165.38,165.35,36.55001738]
[1730817017575,0.1,165.36,165.34,36.55001738]
[1730817017751,0.1,165.37,165.35,36.55001738]
[1730817018277,37.49847499,165.44,165.32,60.78421738]
[1730817018278,0.1,165.34,165.32,60.78421738]
[1730817018456,0.1,165.36,165.33,36.55001738]
[1730817018776,0.1,165.36,165.35,36.55001738]
[1730817019275,0.1,165.36,165.35,51.36701738]
[1730817019473,0.1,165.4,165.35,51.36701738]
[1730817019677,0.2,165.43,165.39,36.55001738]
[1730817019869,0.1,165.41,165.4,36.55001738]
[1730817020045,0.2,165.41,165.39,36.55001738]
[1730817020244,0.2,165.41,165.4,36.55001738]
[1730817020479,0.2,165.41,165.39,36.55001738]
[1730817020680,0.1,165.41,165.39,36.55001738]
[1730817020975,0.1,165.43,165.4,36.55001738]
[1730817021182,37.59847499,165.44,165.42,51.36051738]
[1730817021478,37.49847499,165.44,165.43,56.55001738]
[1730817022480,37.49847499,165.44,165.43,80.32690138]
[1730817022975,37.49847499,165.44,165.43,56.55001738]
[1730817023173,37.49847499,165.44,165.43,80.32690138]
[1730817023487,37.49847499,165.44,165.43,84.55820138]
[1730817023974,37.49847499,165.44,165.43,91.21520138]
[1730817024481,37.49847499,165.44,165.43,56.55001738]
[1730817024654,37.59847499,165.44,165.43,20.0]
[1730817025281,37.49847499,165.44,165.43,60.78131738]
[1730817025652,37.59847499,165.44,165.43,60.78131738]
[1730817025865,37.59847499,165.44,165.43,24.2313]
[1730817026181,37.59847499,165.44,165.43,60.78131738]
[1730817026375,37.49847499,165.44,165.43,60.78131738]
[1730817026556,37.59847499,165.44,165.43,60.78131738]
[1730817026755,37.49847499,165.44,165.43,60.78131738]
[1730817027078,37.49847499,165.44,165.43,84.55820138]
[1730817027390,0.1,165.53,165.44,44.153354]
[1730817027672,0.1,165.53,165.5,56.55001738]
[1730817027876,0.2,165.53,165.5,56.55001738]
[1730817028255,0.1,165.54,165.5,56.55001738]
[1730817028468,0.9,165.55,165.5,80.32690138]
[1730817028678,1.0,165.55,165.5,80.32690138]
[1730817028860,0.8,165.55,165.5,80.32690138]
[1730817029061,0.1,165.54,165.5,80.32690138]
[1730817029267,0.1,165.54,165.5,84.55650138]
[1730817029455,0.9,165.55,165.5,84.55650138]
[1730817029653,0.8,165.55,165.5,121.35749876]
[1730817030572,0.8,165.55,165.5,121.48298876]
[1730817031454,0.8,165.55,165.5,93.25622798]
[1730817031858,0.8,165.55,165.51,44.153354]
[1730817032070,0.8,165.55,165.54,66.21352099]
[1730817032384,0.8,165.55,165.54,22.43663699]
[1730817032686,0.9,165.55,165.53,22.43663699]
[1730817033194,0.9,165.55,165.54,22.43663699]
[1730817033381,6.822287,165.55,165.54,26.66513699]
[1730817033562,7.022287,165.55,165.54,4.2285]
[1730817033988,6.922287,165.55,165.54,26.66513699]
[1730817034162,7.022287,165.55,165.54,26.66513699]
[1730817034476,6.922287,165.55,165.53,33.00843699]
[1730817034678,7.022287,165.55,165.53,37.23723699]
[1730817034879,0.1,165.54,165.53,33.00843699]
[1730817035069,0.2,165.54,165.53,10.5718]
[1730817035468,6.922287,165.55,165.53,37.23723699]
[1730817035776,6.822287,165.55,165.54,42.43663699]
[1730817036594,6.822287,165.55,165.54,66.21352099]
[1730817036779,6.822287,165.55,165.54,66.58999099]
[1730817037081,0.3039077,165.59,165.55,50.436454]
[1730817037383,0.1,165.64,165.6,14.7946]
[1730817037577,0.4039077,165.67,165.64,20.0]
[1730817037797,0.4039077,165.67,165.66,22.43663699]
[1730817038005,0.3039077,165.67,165.66,22.43663699]
[1730817038164,0.3039077,165.67,165.66,42.43663699]
[1730817039582,0.3039077,165.67,165.66,46.66213699]
[1730817040677,0.3039077,165.67,165.66,69.09877398]
[1730817040874,0.1,165.72,165.66,109.62455798]
[1730817041077,0.1,165.72,165.71,22.43663699]
[1730817041984,0.2,165.74,165.71,22.43663699]
[1730817042303,0.1,165.72,165.7,22.43663699]
[1730817042477,0.1,165.68,165.67,22.43663699]
[1730817042795,0.2,165.69,165.67,22.43663699]
[1730817042996,0.1,165.68,165.61,35.9275]
[1730817043171,0.1,165.67,165.61,35.9275]
[1730817043375,0.1,165.67,165.66,22.43663699]
[1730817043701,0.1,165.65,165.64,22.43663699]
[1730817043884,0.2,165.66,165.64,22.43663699]
[1730817044090,0.1,165.65,165.61,14.7936]
[1730817044395,0.2,165.67,165.61,14.7936]
[1730817044588,0.1,165.67,165.66,22.43663699]
[1730817044976,0.1,165.66,165.65,22.43663699]
[1730817045278,0.1,165.67,165.65,22.43663699]
[1730817045477,0.1,165.68,165.66,22.43663699]
[1730817045780,0.2,165.68,165.66,22.43663699]
[1730817045992,0.1,165.67,165.66,22.43663699]
[1730817046192,0.1,165.68,165.66,22.43663699]
[1730817046393,0.1,165.67,165.66,22.43663699]
[1730817046601,0.2,165.67,165.66,22.43663699]
[1730817046807,0.2,165.67,165.65,22.43663699]
[1730817047092,0.1,165.66,165.65,42.43663699]
[1730817047477,0.1,165.64,165.62,22.43663699]
[1730817047677,0.2,165.64,165.62,22.43663699]
[1730817047986,0.1,165.63,165.62,22.43663699]
[1730817048583,0.2,165.64,165.62,22.43663699]
[1730817048802,0.2,165.64,165.63,22.43663699]
[1730817049121,0.1,165.65,165.63,22.43663699]
[1730817049396,0.1,165.67,165.64,22.43663699]
[1730817049600,0.2,165.67,165.66,22.43663699]
[1730817049791,0.2,165.66,165.64,22.43663699]
[1730817049987,0.1,165.66,165.64,22.43663699]
[1730817050195,0.1,165.65,165.63,22.43663699]
[1730817050391,0.1,165.61,165.6,22.43663699]
[1730817051077,0.1,165.61,165.6,4.227]
[1730817051272,0.2,165.61,165.6,4.227]
[1730817051693,0.1,165.61,165.6,26.66363699]
[1730817051903,0.1,165.63,165.61,20.0]
[1730817052086,0.1,165.63,165.62,22.43663699]
[1730817052475,0.1,165.64,165.62,22.43663699]
[1730817052794,0.1,165.65,165.6,14.7946]
[1730817052795,0.1,165.65,165.63,22.43663699]
[1730817053005,0.1,165.65,165.64,37.22763699]
[1730817053204,0.2,165.69,165.64,37.22763699]
[1730817053509,0.1,165.66,165.64,14.791]
[1730817053684,0.1,165.66,165.65,22.43663699]
[1730817054405,0.2,165.67,165.65,22.43663699]
[1730817054582,0.2,165.67,165.66,22.43663699]
[1730817054893,0.1,165.69,165.66,22.43663699]
[1730817055103,0.1,165.69,165.68,22.43663699]
[1730817055485,0.2,165.7,165.68,22.43663699]
[1730817055708,0.2,165.7,165.69,22.43663699]
[1730817056311,0.2,165.7,165.69,26.66133699]
[1730817056600,0.2,165.7,165.66,10.5638]
[1730817056601,0.1,165.69,165.68,22.43663699]
[1730817056809,0.2,165.69,165.67,22.43663699]
[1730817057191,0.1,165.68,165.67,22.43663699]
[1730817057704,0.2,165.69,165.67,22.43663699]
[1730817058094,0.2,165.68,165.66,37.22593699]
[1730817058293,0.1,165.67,165.66,37.22593699]
[1730817059300,0.2,165.69,165.66,37.22593699]
[1730817059486,0.2,165.69,165.68,22.43663699]
[1730817060406,0.2,165.69,165.68,26.66163699]
[1730817060601,0.2,165.69,165.68,22.43663699]
[1730817060801,0.1,165.68,165.67,26.66183699]
[1730817060994,0.2,165.64,165.62,10.5658]
[1730817061310,0.2,165.64,165.63,22.43663699]
[1730817061994,0.2,165.68,165.63,26.66283699]
[1730817062205,0.1,165.7,165.68,20.0]
[1730817062391,0.1,165.71,165.69,22.43663699]
[1730817062593,0.1,165.74,165.71,20.0]
[1730817062795,0.1,165.75,165.71,20.0]
[1730817063083,0.2,165.74,165.72,22.43663699]
[1730817063290,0.2,165.72,165.71,22.43663699]
[1730817063700,0.1,165.68,165.67,22.43663699]
[1730817063906,4.2234,165.74,165.66,22.43663699]
[1730817063907,0.2,165.67,165.66,22.43663699]
[1730817064216,0.2,165.67,165.64,22.43663699]
[1730817064388,0.1,165.64,165.63,22.43663699]
[1730817065093,0.1,165.65,165.63,22.43663699]
[1730817065407,0.2,165.65,165.64,22.43663699]
[1730817065610,0.2,165.66,165.64,22.43663699]
[1730817065809,0.2,165.66,165.65,22.43663699]
[1730817066631,0.2,165.65,165.64,22.43663699]
[1730817066786,0.1,165.64,165.63,14.7917]